fUSD/lending_fUSD_20250804
["ID","MTS","AMOUNT","RATE_DAILY","PERIOD"]
[377216918,1754296262555,-400.0,0.00046575,120]
[377216919,1754296262566,-1251.02,0.00046575,120]
[377216920,1754296262576,-456.71,0.00046575,120]
[377216921,1754296262586,-400.0,0.00046575,120]
[377216922,1754296262597,-2593.64,0.00046575,120]
[377216923,1754296262606,-401.35789659,0.00046575,120]
[377216924,1754296262616,-2373.05,0.00046575,120]
[377216925,1754296262625,-1064.37,0.00046575,120]
[377216926,1754296262635,-1250.38,0.00046575,120]
[377216927,1754296262645,-400.0,0.00046575,120]
[377216928,1754296262656,-268.67687791,0.00046575,120]
[377216929,1754296262666,-804.33,0.00046575,120]
[377216930,1754296262676,-401.88692216,0.00046575,120]
[377216931,1754296262686,-403.29881904,0.00046575,120]
[377216932,1754296262696,-1376.89,0.00046575,120]
[377216933,1754296262706,-400.0,0.00046575,120]
[377216934,1754296262716,-400.0,0.00046575,120]
[377216935,1754296262726,-400.0,0.00046575,120]
[377216936,1754296262736,-400.0,0.00046575,120]
[377216937,1754296262750,-400.0,0.00046575,120]
[377216938,1754296262760,-400.0,0.00046575,120]
[377216939,1754296262769,-400.0,0.00046575,120]
[377216940,1754296262778,-986.67,0.00046575,120]
[377216941,1754296262788,-400.0,0.00046575,120]
[377216942,1754296262797,-464.37,0.00046575,120]
[377216943,1754296262806,-1447.49,0.00046575,120]
[377216944,1754296262816,-901.26,0.00046575,120]
[377216945,1754296262825,-401.07268115,0.00046575,120]
[377216946,1754296262834,-516.97,0.00046575,120]
[377216947,1754296262843,-6556.93,0.00046575,120]
[377216948,1754296262852,-973.46,0.00046575,120]
[377216949,1754296262861,-1037.03,0.00046575,120]
[377216950,1754296262871,-400.0,0.00046575,120]
[377216951,1754296262880,-400.0,0.00046575,120]
[377216952,1754296262889,-781.46,0.00046575,120]
[377216953,1754296262900,-1543.7,0.00046575,120]
[377216954,1754296262910,-839.91,0.00046575,120]
[377216955,1754296262919,-978.71,0.00046575,120]
[377216956,1754296262928,-400.0,0.00046575,120]
[377216957,1754296262937,-400.0,0.00046575,120]
[377216958,1754296262947,-910.74,0.00046575,120]
[377216959,1754296262955,-400.0,0.00046575,120]
[377216960,1754296262965,-1057.3,0.00046575,120]
[377216961,1754296262974,-400.0,0.00046575,120]
[377216962,1754296262983,-696.63,0.00046575,120]
[377216963,1754296262994,-624.9,0.00046575,120]
[377216964,1754296263004,-400.0,0.00046575,120]
[377216965,1754296263013,-400.0,0.00046575,120]
[377216966,1754296263022,-400.0,0.00046575,120]
[377216967,1754296263031,-1012.35,0.00046575,120]
[377216968,1754296263041,-1019.34,0.00046575,120]
[377216969,1754296263051,-4129.42,0.00046575,120]
[377216970,1754296263061,-967.41,0.00046575,120]
[377216971,1754296263071,-1676.88,0.00046575,120]
[377216972,1754296263081,-400.0,0.00046575,120]
[377216973,1754296263090,-400.0,0.00046575,120]
[377216974,1754296263101,-400.0,0.00046575,120]
[377216975,1754296263110,-400.0,0.00046575,120]
[377216976,1754296263119,-565.46,0.00046575,120]
[377216977,1754296263129,-606.4,0.00046575,120]
[377216978,1754296263139,-409.51,0.00046575,120]
[377216979,1754296263149,-400.0,0.00046575,120]
[377216980,1754296263159,-400.0,0.00046575,120]
[377216981,1754296263168,-400.0,0.00046575,120]
[377216982,1754296263178,-400.0,0.00046575,120]
[377216983,1754296263188,-400.0,0.00046575,120]
[377216984,1754296263197,-1617.29,0.00046575,120]
[377216985,1754296263206,-400.0,0.00046575,120]
[377216986,1754296263216,-400.0,0.00046575,120]
[377216987,1754296263225,-1498.59,0.00046575,120]
[377216988,1754296263236,-729.51,0.00046575,120]
[377216989,1754296263247,-400.0,0.00046575,120]
[377216990,1754296263257,-400.0,0.00046575,120]
[377216991,1754296263267,-400.0,0.00046575,120]
[377216992,1754296263277,-572.1,0.00046575,120]
[377216993,1754296263287,-978.17,0.00046575,120]
[377216994,1754296263297,-826.17,0.00046575,120]
[377216995,1754296263308,-614.89,0.00046575,120]
[377216996,1754296263318,-400.0,0.00046575,120]
[377216997,1754296263328,-4061.09412197,0.00046575,120]
[377216998,1754296263348,-594.98587803,0.00046575,120]
[377216999,1754296263358,-1038.9,0.00046575,120]
[377217000,1754296263367,-400.0,0.00046575,120]
[377217001,1754296263376,-369.1389561,0.00046575,120]
[377217002,1754296263390,-30.8610439,0.00046575,120]
[377217003,1754296263399,-373.96952708,0.00046575,2]
[377217004,1754296263409,-480.85,0.00046575,120]
[377217005,1754296263419,-41.58602073,0.00046575,120]
[377217006,1754296263431,-358.41397927,0.00046575,120]
[377217007,1754296263440,-686.72,0.00046575,120]
[377217008,1754296263450,-114.16602073,0.00046575,120]
[377217009,1754296263469,-994.80397927,0.00046575,120]
[377217010,1754296263479,-461.75027641,0.00046575,120]
[377217011,1754296263490,-400.0,0.00046575,120]
[377217012,1754296263500,-400.0,0.00046575,120]
[377217013,1754296263511,-400.0,0.00046575,2]
[377217014,1754296263528,-455.42,0.00046575,120]
[377217015,1754296263537,-398.62574432,0.00046575,120]
[377217016,1754296263549,-1.37425568,0.00046575,120]
[377217017,1754296263560,-1103.48,0.00046575,120]
[377217018,1754296263570,-147.66886186,0.00046575,120]
[377217019,1754296263581,-726.35,0.00046575,120]
[377217020,1754296263595,-131.20113814,0.00046575,120]
[377217021,1754296263605,-400.0,0.00046575,120]
[377217022,1754296263615,-681.29,0.00046575,120]
[377217023,1754296263625,-400.0,0.00046575,2]
[377217024,1754296263634,-1332.59,0.00046575,120]
[377217025,1754296263644,-495.04,0.00046575,120]
[377217026,1754296263656,-168.87886186,0.00046575,120]
[377217034,1754296516103,250.0,0.00015,2]
[377217036,1754296692286,171.72,0.00013699,2]
[377217183,1754297433148,-150.60333968,0.00033461,60]
[377217185,1754297433158,-150.0,0.00035044,120]
[377217187,1754297433168,-150.0,0.00035102,120]
[377217189,1754297433177,-150.0,0.00037276,120]
[377217191,1754297433186,-151.0,0.00039,120]
[377217193,1754297433196,-2.05302643,0.00039815,2]
[377217195,1754297433207,-343.17697357,0.00039815,2]
[377217197,1754297433216,-32.8673752,0.000402,120]
[377217199,1754297433228,-118.1326248,0.000402,120]
[377217201,1754297433237,-991.2828832,0.00040988,30]
[377217203,1754297433247,-200.0,0.00041096,20]
[377217205,1754297433256,-151.0,0.000415,120]
[377217207,1754297433266,-150.0,0.0004153,120]
[377217208,1754297433275,-345.23,0.00041545,120]
[377217209,1754297433285,-533.0,0.000424,10]
[377217210,1754297433294,-151.0,0.000427,120]
[377217211,1754297433303,-345.23,0.00043276,120]
[377217212,1754297433314,-176.13,0.00043821,120]
[377217213,1754297433323,-205.59683561,0.000439,49]
[377217214,1754297433333,-250.0,0.00043914,120]
[377217215,1754297433342,-580.44,0.00043967,2]
[377217216,1754297433353,-171.92,0.00043991,2]
[377217217,1754297433363,-1200.0,0.00043998,5]
[377217218,1754297433373,-300.0,0.00043999,5]
[377217219,1754297433382,-550.0,0.00043999,5]
[377217221,1754297433392,-1000.0,0.00044,120]
[377217223,1754297433401,-151.0,0.00044,120]
[377217225,1754297433411,-234.68,0.00044089,2]
[377217227,1754297433420,-205.59683551,0.000442,50]
[377217228,1754297433429,-175.0,0.00044325,7]
[377217230,1754297433439,-550.0,0.00044403,4]
[377217233,1754297433449,-1000.0,0.00044405,2]
[377217235,1754297433458,-666.0,0.00044427,3]
[377217237,1754297433467,-205.59683551,0.000445,50]
[377217239,1754297433477,-150.0,0.000447,120]
[377217241,1754297433492,-1089.55235903,0.00044711,120]
[377217243,1754297433501,-205.59683551,0.000448,51]
[377217245,1754297433510,-162.5,0.000449,2]
[377217247,1754297433519,-635.0,0.000449,2]
[377217249,1754297433530,-533.0,0.00044915,10]
[377217251,1754297433539,-1000.0,0.00045,120]
[377217253,1754297433551,-436.0,0.00045,15]
[377217255,1754297433561,-155.36,0.00045,120]
[377217257,1754297433571,-151.0,0.00045,90]
[377217259,1754297433581,-345.23,0.00045006,120]
[377217261,1754297433591,-205.59683551,0.000451,51]
[377217263,1754297433600,-7217.52750357,0.00045108,2]
[377217265,1754297433613,-354.85795732,0.00045108,2]
[377217267,1754297433625,-1372.6227422,0.00045108,2]
[377217272,1754297433806,-14954.99179691,0.00045108,2]
[377217273,1754297433817,-151.0,0.000452,120]
[377217274,1754297433827,-205.59683551,0.000454,52]
[377217275,1754297433837,-150.0,0.00045526,2]
[377217276,1754297433847,-150.0,0.0004559,2]
[377217277,1754297433857,-205.59683551,0.000457,53]
[377217278,1754297433868,-528.08535174,0.00045746,2]
[377217279,1754297433877,-150.0,0.0004583,2]
[377217280,1754297433887,-150.0,0.00045851,2]
[377217281,1754297433897,-211.425049,0.00045869,2]
[377217282,1754297433906,-11163.22911017,0.000459,2]
[377217283,1754297433919,-2563.17725856,0.000459,2]
[377217284,1754297433930,-20728.99203127,0.000459,2]
[377217285,1754297433940,-697.9982,0.000459,2]
[377217286,1754297433950,-594.4199,0.000459,2]
[377217287,1754297433960,-2926.19046932,0.000459,15]
[377217288,1754297433969,-673.04995811,0.00045901,2]
[377217289,1754297433979,-622.0,0.0004593,2]
[377217290,1754297433988,-50000.0,0.00046,46]
[377217291,1754297433997,-50000.0,0.00046,56]
[377217292,1754297434007,-1000.0,0.00046,120]
[377217293,1754297434016,-178940.40337962,0.00046,30]
[377217294,1754297434130,-3078.64,0.00046,30]
[377217295,1754297434141,-5376.13893112,0.00046,30]
[377217296,1754297434153,-486.87103,0.00046,30]
[377217297,1754297434165,-935.06652891,0.00046,30]
[377217298,1754297434177,-11460.03932335,0.00046,30]
[377217299,1754297434186,-205.59683551,0.00046,53]
[377217300,1754297434196,-2926.19046929,0.00046011,15]
[377217301,1754297434205,-818.01456447,0.00046057,2]
[377217302,1754297434215,-150.0,0.0004609,2]
[377217303,1754297434225,-2926.19046929,0.00046122,15]
[377217304,1754297434234,-430.628,0.00046165,2]
[377217305,1754297434243,-2500.0,0.00046165,2]
[377217306,1754297434253,-5702.9064,0.00046175,2]
[377217307,1754297434263,-192.61822691,0.00046176,15]
[377217308,1754297434273,-206.88249981,0.00046176,28]
[377217309,1754297434282,-312.49,0.00046188,2]
[377217310,1754297434292,-2292.63166136,0.00046198,15]
[377217311,1754297434301,-1178.73,0.000462,120]
[377217312,1754297434311,-962.97917083,0.00046212,2]
[377217313,1754297434320,-2926.19046929,0.00046233,15]
[377217314,1754297434330,-150.0,0.00046253,14]
[377217315,1754297434340,-312.49,0.00046255,2]
[377217316,1754297434349,-261.01,0.00046255,2]
[377217317,1754297434358,-151242.86977944,0.00046257,7]
[377217318,1754297434370,-169505.60191494,0.00046257,7]
[377217319,1754297434381,-400.23252303,0.00046257,7]
[377217320,1754297434393,-4958.82070651,0.00046257,7]
[377217321,1754297434405,-3067.70739455,0.00046257,7]
[377217322,1754297434417,-1955.57197045,0.00046257,7]
[377217323,1754297434437,-658.63356536,0.00046257,7]
[377217324,1754297434449,-516.29001961,0.00046257,7]
[377217325,1754297434460,-407.38488923,0.00046257,7]
[377217326,1754297434471,-472.12295122,0.00046257,7]
[377217327,1754297434495,-1685.67550141,0.00046257,7]
[377217328,1754297434507,-616.85219586,0.00046257,7]
[377217329,1754297434519,-1937.08497576,0.00046257,7]
[377217330,1754297434531,-2283.0,0.00046257,7]
[377217331,1754297434543,-6926.35821744,0.00046257,7]
[377217332,1754297438070,-447.20556288,0.00046257,7]
[377217333,1754297438082,-15904.63260943,0.00046257,7]
[377217334,1754297438226,-5225.97513434,0.00046257,7]
[377217335,1754297438239,-1893.07921605,0.00046257,7]
[377217336,1754297438369,-398492.77771964,0.00046257,7]
[377217337,1754297438382,-417.45465815,0.00046257,7]
[377217339,1754297438395,-40065.4489232,0.00046257,7]
[377217341,1754297438406,-7950.81148766,0.00046257,7]
[377217348,1754297440203,-3828.86735665,0.00046257,7]
[377217349,1754297440215,-3433.13445497,0.00046257,7]
[377217350,1754297440257,-1759.8369796,0.00046257,7]
[377217351,1754297440292,-500.3348243,0.00046257,7]
[377217352,1754297440310,-398.7949945,0.00046257,7]
[377217353,1754297440358,-2038.3362421,0.00046257,7]
[377217354,1754297440369,-833.73612506,0.00046257,7]
[377217355,1754297440427,-946.55964647,0.00046257,7]
[377217356,1754297440514,-3053.44035353,0.00046257,7]
[377217357,1754297440568,-63773.12665359,0.00046257,7]
[377217358,1754297440580,-746.77063207,0.00046257,7]
[377217363,1754297443487,-157187.94657716,0.00046257,7]
[377217364,1754297443564,-4779.33272858,0.00046257,7]
[377217365,1754297443690,-2413.0808208,0.00046257,7]
[377217366,1754297443702,-393.3719999,0.00046257,7]
[377217367,1754297443713,-3524.0,0.00046257,7]
[377217368,1754297443732,-5109.54820159,0.00046257,7]
[377217369,1754297443782,-5187.28038795,0.00046257,7]
[377217370,1754297443794,-716.82861906,0.00046257,7]
[377217371,1754297443910,-285.9198874,0.00046257,7]
[377217372,1754297443922,-2535.5868532,0.00046257,7]
[377217373,1754297443962,-9369.43547416,0.00046257,7]
[377217383,1754297446204,-39593.24322307,0.00046257,7]
[377217384,1754297446297,-449.85301035,0.00046257,7]
[377217385,1754297446308,-1130.78065668,0.00046257,7]
[377217386,1754297446320,-748.97502,0.00046257,7]
[377217387,1754297446451,-5103.65069168,0.00046257,7]
[377217388,1754297446483,-1944.0,0.00046257,7]
[377217389,1754297446495,-3001.58686314,0.00046257,7]
[377217420,1754297514903,-219.68906553,0.00028934,2]
[377217424,1754297649914,-211.425049,0.00028934,2]
[377217425,1754297674759,-211.54718252,0.00028934,2]
[377217426,1754297676602,-337.50875417,0.00028934,2]
[377217427,1754297678907,-179.44114783,0.00028934,2]
[377217429,1754297681103,-165.050098,0.00028934,2]
[377217430,1754297683173,-180.50291548,0.00028934,2]
[377217431,1754297684955,-288.574951,0.00028934,2]
[377217432,1754297687893,-151.0,0.00028934,2]
[377217433,1754297690645,-200.0,0.00028934,2]
[377217435,1754297692478,-151.11492843,0.00028934,2]
[377217437,1754297815066,-160.68507157,0.00028834,2]
[377217438,1754297818701,-153.0,0.00028834,2]
[377217441,1754297880529,171.72,0.00013699,2]
[377217442,1754297997021,-186.31492843,0.00028834,2]
[377217443,1754297997044,-151.0,0.00028934,2]
[377217444,1754297997067,-98.44165779,0.00028934,2]
[377217445,1754298123230,1040.0,0.00021096,120]
[377217449,1754298310666,-150.0,0.00019178,2]
[377217450,1754298310689,-13.65341378,0.00022352,2]
[377217451,1754298314383,-158.38,0.00022352,2]
[377217452,1754298316452,-152.37091527,0.00022352,2]
[377217453,1754298319742,-92.79882851,0.00022352,2]
[377217454,1754298319767,-257.45107159,0.00022352,2]
[377217455,1754298322013,-20.68436679,0.00022352,2]
[377217456,1754298322037,-132.69481784,0.00028901,2]
[377217504,1754298632293,-2130.40621298,0.00028901,2]
[377217505,1754298632303,-151.0,0.00028934,2]
[377217506,1754298632312,-866.38125618,0.00028934,2]
[377217507,1754298632322,-250.0,0.00031791,2]
[377217508,1754298632331,-300.0,0.00031791,120]
[377217509,1754298632341,-300.0,0.00031791,120]
[377217510,1754298632351,-1200.0,0.00034051,3]
[377217511,1754298632361,-7924.13983522,0.00034052,2]
[377217512,1754298632370,-203.17987767,0.000349,31]
[377217513,1754298632379,-203.17987752,0.00035606,33]
[377217514,1754298632388,-11528.0,0.00036254,30]
[377217515,1754298632398,-203.17987752,0.00036312,34]
[377217516,1754298632407,-203.17987752,0.00037018,35]
[377217517,1754298632416,-375.84054793,0.00037457,30]
[377217518,1754298632425,-203.17987752,0.00037724,37]
[377217519,1754298632435,-203.17987752,0.00038429,38]
[377217520,1754298632444,-403.21,0.00038633,2]
[377217521,1754298632453,-152.0,0.00039,120]
[377217522,1754298632463,-203.17987752,0.00039135,40]
[377217523,1754298632473,-150.0,0.00039207,120]
[377217524,1754298632482,-203.17987752,0.00039841,41]
[377217525,1754298632492,-152.0,0.000403,120]
[377217526,1754298632501,-6355.49590163,0.00040313,2]
[377217527,1754298632510,-21.93029969,0.00040364,2]
[377217528,1754298632522,-381.27970031,0.00040364,2]
[377217529,1754298632532,-203.17987752,0.00040547,42]
[377217530,1754298632541,-200.0,0.00041096,20]
[377217531,1754298632550,-203.17987752,0.00041253,44]
[377217532,1754298632560,-211.425049,0.00041481,2]
[377217533,1754298632570,-152.0,0.000417,120]
[377217534,1754298632579,-569.0,0.00041744,10]
[377217535,1754298632589,-515.0,0.00041744,10]
[377217536,1754298632599,-150.0,0.00041895,120]
[377217537,1754298632610,-203.17987752,0.00041959,45]
[377217539,1754298632619,-403.21,0.00042094,120]
[377217541,1754298632628,-4139.06345614,0.0004213,2]
[377217543,1754298632637,-203.17987752,0.00042665,47]
[377217545,1754298632646,-398.79190014,0.000429,2]
[377217547,1754298632658,-222.20809986,0.000429,2]
[377217549,1754298632668,-152.0,0.00043,120]
[377217550,1754298632677,-151.629,0.00043064,66]
[377217552,1754298632686,-263.77434121,0.00043285,2]
[377217554,1754298632697,-2019.33847656,0.00043285,2]
[377217555,1754298632713,-2257.26981103,0.00043285,2]
[377217557,1754298632722,-203.17987752,0.00043371,48]
[377217559,1754298632731,-175.0,0.00043371,7]
[377217560,1754298632740,-666.0,0.00043384,3]
[377217562,1754298632750,-1178.73,0.000435,30]
[377217564,1754298632759,-403.21,0.00043824,120]
[377217565,1754298632768,-608.0,0.0004393,2]
[377217566,1754298632777,-95.31418398,0.00043935,2]
[377217567,1754298632788,-76.60581602,0.00043935,2]
[377217568,1754298632797,-203.17987752,0.00044076,49]
[377217569,1754298632806,-4675.65024074,0.00044113,2]
[377217570,1754298632835,-1224.76840754,0.00044113,2]
[377217571,1754298632846,-7856.77135172,0.00044113,2]
[377217572,1754298632857,-250.0,0.00044113,120]
[377217573,1754298632867,-4543.8575554,0.00044138,2]
[377217574,1754298632876,-3010.14916471,0.000442,2]
[377217575,1754298632885,-152.0,0.000443,120]
[377217576,1754298632894,-544.77617951,0.00044404,120]
[377217577,1754298632903,-203.17987752,0.00044782,51]
[377217578,1754298632913,-150.0,0.00044873,14]
[377217580,1754298632922,-596.0,0.0004495,2]
[377217582,1754298632932,-519.87194632,0.00045,120]
[377217584,1754298632941,-400.0,0.00045,120]
[377217586,1754298632950,-400.0,0.00045,120]
[377217588,1754298632959,-400.0,0.00045,120]
[377217590,1754298632968,-1169.0,0.00045125,2]
[377217592,1754298632977,-6065.0,0.00045125,2]
[377217594,1754298632986,-9361.67762472,0.00045125,2]
[377217598,1754298633014,-570.3,0.00045125,2]
[377217606,1754298633084,-1834.98957114,0.00045125,2]
[377217613,1754298638316,-281.55,0.00045125,2]
[377217614,1754298638329,-9355.48280414,0.00045125,2]
[377217615,1754298638339,-3944.38902858,0.00045125,2]
[377217616,1754298638380,-192.61097142,0.00045125,2]
[377217617,1754298638390,-150.0,0.00045178,2]
[377217618,1754298638401,-1000.0,0.0004519,2]
[377217619,1754298638411,-150.0,0.00045203,14]
[377217620,1754298638422,-522.04045796,0.00045332,2]
[377217621,1754298638432,-569.0,0.00045396,13]
[377217622,1754298638443,-162.5,0.00045399,2]
[377217623,1754298638455,-665.34568171,0.00045486,2]
[377217624,1754298638466,-203.17987752,0.00045488,52]
[377217625,1754298638476,-444.00791768,0.000455,2]
[377217626,1754298638486,-530.0,0.000455,2]
[377217627,1754298638496,-150.0,0.00045531,14]
[377217628,1754298638506,-140.47586705,0.00045555,120]
[377217629,1754298638519,-262.73413295,0.00045555,120]
[377217630,1754298638529,-726.61585,0.00045562,2]
[377217631,1754298638539,-808.65090546,0.0004564,2]
[377217632,1754298638549,-152.0,0.000457,120]
[377217633,1754298638559,-951.95612922,0.00045794,2]
[377217634,1754298638569,-150.0,0.00045827,14]
[377217635,1754298638578,-150.0,0.00045857,14]
[377217636,1754298638588,-1100.0,0.000459,16]
[377217637,1754298638597,-208.02466821,0.00045912,30]
[377217638,1754298638608,-1895.73680247,0.00045927,15]
[377217639,1754298638617,-1095.26135297,0.00045949,2]
[377217640,1754298638627,-332.22010696,0.00045951,2]
[377217641,1754298638721,-394.39574404,0.00045951,2]
[377217643,1754298638731,-150.0,0.00045964,2]
[377217645,1754298638740,-150.0,0.00045975,2]
[377217647,1754298638750,-150.0,0.0004598,2]
[377217648,1754298638760,-584.0,0.0004598,2]
[377217650,1754298638770,-39.44475864,0.0004599,2]
[377217654,1754298638812,-110.55524136,0.0004599,2]
[377217655,1754298638822,-2356.48853497,0.00046,46]
[377217656,1754298638834,-47643.51146503,0.00046,46]
[377217657,1754298638843,-50000.0,0.00046,56]
[377217658,1754298638853,-249.99,0.00046017,2]
[377217659,1754298638867,-818.41,0.00046027,30]
[377217661,1754298638877,-466.51,0.00046027,30]
[377217663,1754298638887,-818.41,0.00046027,30]
[377217665,1754298638898,-396.25,0.00046027,30]
[377217667,1754298638908,-1895.73680238,0.00046035,15]
[377217669,1754298638918,-150.0,0.0004606,2]
[377217671,1754298638927,-150.0,0.000461,2]
[377217672,1754298638937,-1238.56657672,0.00046103,2]
[377217673,1754298638947,-1895.73680238,0.00046143,15]
[377217674,1754298638956,-150.0,0.00046147,2]
[377217675,1754298638966,-1000.0,0.00046156,2]
[377217676,1754298638975,-1000.0,0.00046175,2]
[377217677,1754298638985,-152.2025362,0.00046176,2]
[377217678,1754298638995,-203.17987752,0.00046194,54]
[377217679,1754298639005,-1895.73680238,0.00046251,15]
[377217680,1754298639015,-2500.0,0.00046255,2]
[377217681,1754298639024,-500.0,0.00046256,7]
[377217682,1754298639033,-500.0,0.00046256,7]
[377217683,1754298639042,-500.0,0.00046256,7]
[377217684,1754298639051,-500.0,0.00046256,7]
[377217685,1754298639062,-151.0,0.00046256,7]
[377217686,1754298639072,-500.0,0.00046256,7]
[377217687,1754298639082,-151.0,0.00046256,7]
[377217688,1754298639092,-500.0,0.00046256,7]
[377217689,1754298639103,-151.0,0.00046256,7]
[377217690,1754298639113,-151.0,0.00046256,7]
[377217691,1754298639123,-151.0,0.00046256,7]
[377217692,1754298639133,-151.0,0.00046256,7]
[377217693,1754298639143,-500.0,0.00046256,7]
[377217694,1754298639153,-151.0,0.00046256,7]
[377217695,1754298639162,-500.0,0.00046256,7]
[377217696,1754298639172,-151.0,0.00046256,7]
[377217697,1754298639181,-445.26913742,0.00046256,7]
[377217698,1754298639250,-864.0,0.00045125,2]
[377217699,1754298639260,-54.73086258,0.00046256,7]
[377217700,1754298639270,-151.0,0.00046256,7]
[377217701,1754298639279,-500.0,0.00046256,7]
[377217702,1754298639290,-500.0,0.00046256,7]
[377217703,1754298639302,-151.0,0.00046256,7]
[377217704,1754298639313,-151.0,0.00046256,7]
[377217705,1754298639323,-88.87388105,0.00046257,2]
[377217706,1754298640324,-1032.75,0.00046257,2]
[377217707,1754298640482,-260.24791943,0.00046257,2]
[377217708,1754298640492,-211.425049,0.00046265,3]
[377217709,1754298640502,-5702.9064,0.00046265,2]
[377217710,1754298640511,-2413.80585724,0.00046275,15]
[377217711,1754298640521,-154.97317224,0.00046275,15]
[377217712,1754298640530,-262.31620088,0.00046275,28]
[377217713,1754298640540,-472.38,0.00046301,30]
[377217714,1754298640549,-150.0,0.00046318,2]
[377217715,1754298640558,-150.0,0.00046334,14]
[377217716,1754298640568,-2413.80585722,0.00046344,15]
[377217717,1754298640577,-249.99,0.00046345,2]
[377217718,1754298640587,-568.18702915,0.00046347,61]
[377217719,1754298640597,-5540818.36125554,0.00046347,7]
[377217720,1754298640610,-492.2738,0.00046347,7]
[377217728,1754298640928,-0.01034975,0.00046347,7]
[377217729,1754298640972,-981.7699643,0.00046347,7]
[377217737,1754298643283,-1294.63695,0.00046257,32]
[377217738,1754298643294,-90823.57170877,0.00046347,7]
[377217739,1754298643318,-336.67632248,0.00046347,7]
[377217744,1754298646314,-366.592,0.00046347,7]
[377217755,1754298773426,-279.54998735,0.00041744,10]
[377217756,1754298774774,-214.26445912,0.00022356,7]
[377217760,1754298979669,171.72,0.00013699,2]
[377217769,1754299510132,-153.37918463,0.00019,2]
[377217770,1754299512056,-200.0,0.00019,2]
[377217771,1754299514090,-160.0,0.00019,2]
[377217772,1754299542837,194.0,0.00030137,120]
[377217775,1754299591201,649.0,0.00018999,2]
[377217776,1754299593273,500.0,0.00018999,2]
[377217777,1754299593307,500.0,0.00018999,2]
[377217778,1754299593342,477.99986962,0.00018999,2]
[377217779,1754299593376,500.0,0.00018999,2]
[377217780,1754299593424,273.04473589,0.00018999,2]
[377217781,1754299597684,500.0,0.00018999,2]
[377217782,1754299597737,500.0,0.00018999,2]
[377217783,1754299597788,239.56308862,0.00018999,2]
[377217784,1754299597826,500.0,0.00018999,2]
[377217785,1754299597882,500.0,0.00018999,2]
[377217786,1754299597972,500.0,0.00018999,2]
[377217787,1754299598037,500.0,0.00018999,2]
[377217788,1754299599898,319.21468529,0.00018999,2]
[377217789,1754299624232,1700.0,0.000189,6]
[377217797,1754299705236,471.48204096,0.000189,2]
[377217799,1754299719840,12818.10094572,0.000151,2]
[377217802,1754299748305,244.1201044,0.000189,2]
[377217803,1754299789570,572.57830588,0.000189,2]
[377217804,1754299799861,225.0,0.0001862,2]
[377217805,1754299801762,1200.0,0.00018999,2]
[377217807,1754299815598,374.28,0.0001899,2]
[377217808,1754299815824,374.28,0.0001899,2]
[377217809,1754299816053,374.28,0.0001899,2]
[377217810,1754299816255,374.28,0.0001899,2]
[377217811,1754299816835,374.28,0.0001899,2]
[377217812,1754299818223,261.01,0.0001899,2]
[377217813,1754299818391,261.01,0.0001899,2]
[377217855,1754299832401,-1313.40811724,0.00019,2]
[377217856,1754299832418,-16281.4387431,0.00019,2]
[377217857,1754299832465,-1323.4572837,0.00019,2]
[377217858,1754299832475,-13155.73446957,0.00019,2]
[377217859,1754299832520,-1200.24403036,0.00019,2]
[377217860,1754299832531,-2172.6880549,0.00019,2]
[377217862,1754299837650,-2773.02320069,0.00019,2]
[377217863,1754299837662,-1205.29249906,0.00019,2]